Cogmind - Beta 16.1 @@@ ROGUE MODE // 2026.04.21 @ 15:09:24 Player: Jimothy Jimone Result: Destroyed by as-44522 with Assembled Blade Performance ------------- Evolutions (0) 0 Regions Visited (3) 600 Robots Destroyed (11) 55 Value Destroyed (248) 248 Prototype IDs (23) 460 Alien Tech Used (0) 0 Bonus (292) 292 TOTAL SCORE: 1655 Bonus ------- Aligned with FarCom 300 Friendly Fire -8 Cogmind --------- Core Integrity 0/250 Matter 166/300 Energy 111/125 System Corruption 0% Temperature Warm (181) Movement Walking (90) Location -10/Exiles Parts ------- > --- POWER (1) -------- Light Ion Engine > --- PROPULSION (2) --- Potential Leg > --- UTILITY (2) ------ (None) > --- WEAPON (2) ------- Guided Plasma Cannon Light Assault Rifle > --- INVENTORY (5) ---- Ion Engine Light Ion Engine AWS/Thermal Grenade Launcher Peak State ------------ > --- POWER ------------ Light Ion Engine > --- PROPULSION ------- Potential Leg Potential Leg > --- UTILITY ---------- Sensor Array > --- WEAPON ----------- Guided Plasma Cannon Grenade Launcher > --- INVENTORY -------- Ion Engine Light Ion Engine AWS/Thermal Light Assault Rifle [Rating: 32] Favorites ----------- Power Light Ion Engine Engine Light Ion Engine Propulsion Potential Leg Leg Potential Leg Wheel Compact Wheel Utility Sensor Array Device Sensor Array Weapon Grenade Launcher Energy Cannon Guided Plasma Cannon Ballistic Gun Light Assault Rifle Launcher Grenade Launcher Build | -11 -10 -10 -10 ------- Run | Yrd Mat Min Exi Slots Evolved . | . . . . Power . | . . . . Propulsion . | . . . . Utility . | . . . . Weapon . | . . . . Parts Attached 9 | 4 2 . 3 Power 1 | 1 . . . Engine 1 | 1 . . . Core . | . . . . Reactor . | . . . . Propulsion 4 | 2 . . 2 Treads . | . . . . Leg 2 | . . . 2 Wheel 2 | 2 . . . Hover . | . . . . Flight . | . . . . Utility 1 | . 1 . . Device 1 | . 1 . . Storage . | . . . . Processor . | . . . . Hackware . | . . . . Protection . | . . . . Artifact . | . . . . Weapon 3 | 1 1 . 1 Energy Gun . | . . . . Energy Cannon 1 | . . . 1 Ballistic Gun 1 | 1 . . . Ballistic Cannon . | . . . . Launcher 1 | . 1 . . Special Weapon . | . . . . Impact Weapon . | . . . . Slashing Weapon . | . . . . Piercing Weapon . | . . . . Special Melee Weapon . | . . . . Unidentified Prototypes . | . . . . Parts Lost 1 | . . . 1 Power . | . . . . Propulsion . | . . . . Utility 1 | . . . 1 Weapon . | . . . . Highest Loss Streak 1 | . . . 1 To Critical Strikes . | . . . . Average Backups 2 | . 1 2 3 Power 1 | . 1 2 2 Propulsion . | . . . . Utility . | . . . . Weapon . | . . . . Tool/Special . | . . . . Unused Backups 4 | . . . 4 Power 2 | . . . 2 Propulsion 1 | . . . 1 Utility . | . . . . Weapon 1 | . . . 1 Tool/Special . | . . . . Average Slot Usage (%) 82 | . 76 85 84 Engine 14 | . 14 14 14 Leg 10 | . . . 19 Wheel 17 | . 28 28 8 Device 13 | . 10 14 14 Energy Cannon 4 | . . . 8 Ballistic Gun 9 | . 14 14 6 Launcher 12 | . 8 14 13 Peak Build Rating 32 | 4 6 6 32 Average Rating 14 | 3 5 6 23 On Entrance 4 | . 4 6 6 Avg Prop Armor Cover (%) . | . . . . Naked Turns . | . . . . Heaviest Build 17 | 4 8 8 17 Greatest Support 60 | 26 26 26 60 Greatest Overweight (x) . | . . . . Average Overweight (x) . | . . . . Largest Inventory Capacity 5 | 5 5 5 5 Average Capacity 5 | 5 5 5 5 Most Carried 5 | 1 3 3 5 Average Carried 2 | . 1 2 3 Final Capacity 5 | 5 5 5 5 Final Carried 5 | 1 2 3 5 Class Distribution -------------------- 100% | Mutant Dominant Class ---------------- Mutant | -10/Materials Mutant | -10/Mines Mutant | -10/Exiles Resources | -11 -10 -10 -10 ----------- Run | Yrd Mat Min Exi Matter Collected 323 | 256 67 . . Remotely . | . . . . Salvage Created 168 | 23 136 9 . Parts 21 | 1 18 2 . Haulers Intercepted . | . . . . Recyclers Shooed . | . . . . Parts Field Recycled . | . . . . Retrieved Matter . | . . . . Parts Self-Destructed . | . . . . Prevented . | . . . . Parts Restored . | . . . . Kills | -11 -10 -10 -10 ------- Run | Yrd Mat Min Exi Combat Hostiles Destroyed 7 | . 4 3 . Guns 1 | . . 1 . AOE 6 | . 4 2 . Classes Destroyed 6 | 1 4 1 . Worker 1 | . 1 . . Builder 1 | . 1 . . Tunneler 1 | 1 . . . Watcher 1 | . 1 . . Swarmer 3 | . . 3 . Grunt 4 | . 4 . . Best Kill Streak 6 | 1 6 3 . Combat Bots Only 4 | . 4 3 . Max Kills in Single Turn 2 | 1 2 1 . Gunslinging . | . . . . Exploded 2 | . 2 1 . Melee . | . . . . Uniques/NPCs Destroyed . | . . . . Combat | -11 -10 -10 -10 -------- Run | Yrd Mat Min Exi Hostile Shots Fired 29 | . 5 3 21 Missed 7 | . 2 . 5 Hits 22 | . 3 3 16 Melee 7 | . . . 7 Projectile 15 | . 3 3 9 Critical Strikes 3 | . . . 3 Damage Taken 488 | . 106 25 357 Core 278 | . 64 10 204 Absorbed by Shields . | . . . . Core Remaining (%) 100 | 100 . . . Volleys Fired 34 | 16 12 3 3 Largest 2 | 1 2 2 1 Hottest 120 | 20 50 50 120 Shots Fired 47 | 16 22 6 3 Gun 32 | 16 12 3 1 Cannon 2 | . . . 2 Launcher 13 | . 10 3 . Special . | . . . . Kinetic 32 | 16 12 3 1 Thermal 2 | . . . 2 Explosive 13 | . 10 3 . Electromagnetic . | . . . . Robot Hit Streak 4 | 3 3 2 4 Robot Miss Streak 4 | 4 2 1 . Penetration Max . | . . . . Secondary Targets . | . . . . Shots Hit Robots 19 | 7 8 2 2 Core Hits 23 | 5 14 3 1 Critical Kills . | . . . . Critical Parts Destroyed . | . . . . Critical Strikes . | . . . . Melee Attacks . | . . . . Impact . | . . . . Slashing . | . . . . Piercing . | . . . . Sneak Attacks . | . . . . Combat Hostiles . | . . . . Follow-up Attacks . | . . . . Damage Inflicted 706 | 82 356 192 76 Guns 140 | 82 41 9 8 Cannons 68 | . . . 68 Explosions 498 | . 315 183 . Melee . | . . . . Ramming . | . . . . Kinetic 140 | 82 41 9 8 Thermal 68 | . . . 68 Explosive 498 | . 315 183 . Electromagnetic . | . . . . Impact . | . . . . Slashing . | . . . . Piercing . | . . . . Highest Corruption . | . . . . Average Corruption . | . . . . Corruption Purged . | . . . . Corruption Blocked . | . . . . Overload Shots . | . . . . Overflow Damage 8 | . . 8 . Projectiles . | . . . . Explosions 8 | . . 8 . Melee . | . . . . Knockbacks . | . . . . Impact . | . . . . Kinetic . | . . . . Secondary . | . . . . Self-Inflicted Damage 73 | . 73 . . Shots 4 | . 4 . . Rammed . | . . . . Targets Rammed . | . . . . Kicked . | . . . . Crushed . | . . . . Highest Temperature 181 | . 20 20 181 Average Temperature 28 | . 10 10 107 Received Heat Transfer 101 | . 21 . 80 Siege Activations . | . . . . Martial Activations . | . . . . Shielding Activations . | . . . . Robots Disrupted . | . . . . Combat Hostiles . | . . . . Robots Corrupted . | . . . . Combat Hostiles . | . . . . Parts Fried . | . . . . Impact Corruptions . | . . . . Robots Melted . | . . . . Combat Hostiles . | . . . . Parts Melted . | . . . . Heat Transferred 160 | . . . 160 Parts Sabotaged . | . . . . Parts Stolen . | . . . . Parts Stripped . | . . . . Power Chain Reactions . | . . . . Alert | -11 -10 -10 -10 ------- Run | Yrd Mat Min Exi Maximum Alert Level . | . . . . Low Security (%) 100 | 100 100 100 . Level 1 . | . . . . Level 2 . | . . . . Level 3 . | . . . . Level 4 . | . . . . Level 5 . | . . . . High Security . | . . . . Max Security . | . . . . Peak Influence 165 | 5 165 126 . Initial 60 | . . 60 . Average 47 | . 49 82 . Influence Increases 301 | 5 210 86 . Destroy 0b10 Robot/C 140 | . 80 60 . Destroy 0b10 Robot/NC 20 | 5 15 . . Destroy Leader 22 | . 12 10 . Successful Hack 5 | . 5 . . Disable Machine 60 | . 60 . . Destroy Structure 54 | . 38 16 . Influence Decreases 301 | 5 55 155 86 Entered New Map 181 | . . 95 86 Time Decay 120 | 5 55 60 . Squads Dispatched 2 | . 2 . . Investigation . | . . . . Extermination . | . . . . Reinforcement 2 | . 2 . . Assault . | . . . . Garrison . | . . . . Intercept . | . . . . Searches Triggered . | . . . . Construction Impeded . | . . . . Haulers Reinforced . | . . . . Active Scanning Responses . | . . . . Cargo Convoy Interrupts . | . . . . Stealth | -11 -10 -10 -10 --------- Run | Yrd Mat Min Exi Distress Signals 2 | . 2 . . Communications Jammed . | . . . . Distress Signals . | . . . . Times Spotted 17 | . 7 2 8 Peak Tracking Total 9 | . 3 2 9 Tactical Retreats . | . . . . Traps | -11 -10 -10 -10 ------- Run | Yrd Mat Min Exi Traps Triggered . | . . . . Indirectly . | . . . . Trap Hack Attempts . | . . . . Triggered . | . . . . Disarmed . | . . . . Reprogrammed . | . . . . Reused . | . . . . Traps Extracted . | . . . . Installed . | . . . . Triggered . | . . . . Machines | -11 -10 -10 -10 ---------- Run | Yrd Mat Min Exi Machines Disabled 4 | . 4 . . Max in Single Turn 1 | . 1 . . Machines Repaired . | . . . . Machines Dismantled . | . . . . Machines Sabotaged . | . . . . Overloaded Fab Kills . | . . . . Hacking | -11 -10 -10 -10 --------- Run | Yrd Mat Min Exi Machines Accessed 3 | . 2 . 1 Terminals 1 | . 1 . . Fabricators . | . . . . Repair Stations . | . . . . Recycling Units 1 | . 1 . . Scanalyzers . | . . . . Garrison Access . | . . . . Total Hacks 5 | . 4 . 1 Successful 3 | . 2 . 1 Failed 2 | . 2 . . Catastrophic . | . . . . Database Lockouts . | . . . . Manual 4 | . 3 . 1 Terminals 3 | . 3 . . Fabricators . | . . . . Repair Stations . | . . . . Recycling Units 1 | . 1 . . Scanalyzers . | . . . . Garrison Access . | . . . . Terminal Hacks 2 | . 1 . 1 Locate Traps 1 | . 1 . . Proto ID Catalog 1 | . . . 1 Fabricator Hacks . | . . . . Repair Station Hacks . | . . . . Recycling Unit Hacks 1 | . 1 . . Report Inventory 1 | . 1 . . Scanalyzer . | . . . . Garrison Access Hacks . | . . . . Unauthorized Hacks . | . . . . Terminals . | . . . . Fabricators . | . . . . Repair Stations . | . . . . Recycling Units . | . . . . Scanalyzers . | . . . . Garrison Access . | . . . . Data Cores Recovered . | . . . . Used . | . . . . Hacking Detections 1 | . 1 . . Full Trace Events . | . . . . Feedback Events . | . . . . Feedback Blocked . | . . . . Robot Schematics Acquired . | . . . . Robots Built . | . . . . Authchips . | . . . . Time . | . . . . Total Robot Build Rating . | . . . . Part Schematics Acquired . | . . . . Parts Built . | . . . . Authchips . | . . . . Time . | . . . . Total Part Build Rating . | . . . . Part Studies Acquired . | . . . . Parts Repaired . | . . . . Time . | . . . . Parts Recycled . | . . . . Recycled Matter . | . . . . Retrieved Matter . | . . . . Retrieved Components . | . . . . Parts Scanalyzed . | . . . . Part Schematics Acquired . | . . . . Parts Damaged . | . . . . Bothacking | -11 -10 -10 -10 ------------ Run | Yrd Mat Min Exi Used RIF Installer . | . . . . Robots Hacked . | . . . . Non-combat . | . . . . Combat . | . . . . Robot Hacks Applied . | . . . . Relay Couplers Released . | . . . . Fabnet Peak Effective % . | . . . . Robots Rewired . | . . . . Allies Hacked . | . . . . Hacks Repelled . | . . . . Allies | -11 -10 -10 -10 -------- Run | Yrd Mat Min Exi Total Allies . | . . . . Largest Group . | . . . . Highest-Rated Group . | . . . . Highest-Rated Ally . | . . . . Total Orders . | . . . . Ally Attacks . | . . . . Total Damage . | . . . . Kills . | . . . . Allies Corrupted . | . . . . Allies Melted . | . . . . Intel | -11 -10 -10 -10 ------- Run | Yrd Mat Min Exi Active Infowar (turns) 736 | . 166 136 434 Sensors 736 | . 166 136 434 Robot Analysis Total . | . . . . Derelict Logs Recovered . | . . . . Drone Launches . | . . . . Drone Recoveries . | . . . . Exploration | -11 -10 -10 -10 ------------- Run | Yrd Mat Min Exi Turns Passed 887 | 112 203 136 436 Spaces Moved 878 | 85 186 141 466 Core 1 | 1 . . . Treads . | . . . . Legs 330 | . . . 330 Wheels 547 | 84 186 141 136 Hover . | . . . . Flight . | . . . . Fastest Speed 50 | 50 90 90 90 Average Speed 90 | 90 90 90 90 Slowest Speed 100 | 100 90 90 90 Overloaded Moves . | . . . . Propulsion Burnouts . | . . . . Robots Hopped . | . . . . Potential Cave-ins . | . . . . Cave-ins Triggered . | . . . . Exploration Rate (%) 31 | 5 33 28 58 Regions Visited 3 Branch Regions 2 Pre-discovered Areas . | . . . . Known Exits Taken . | . . . . Unknown Exits Taken 3 | 1 1 1 . Scrap Searched . | . . . . Spaces Dug . | . . . . Terrain Destroyed 67 | . 43 24 . Melee . | . . . . Projectile . | . . . . AOE 67 | . 43 24 . Terrain Rammed . | . . . . Walls Destroyed . | . . . . Machines Disabled . | . . . . Actions | -11 -10 -10 -10 --------- Run | Yrd Mat Min Exi Total 929 | 105 201 144 479 Wait . | . . . . Move 875 | 84 185 140 466 Hop . | . . . . Pick Up 6 | 1 2 1 2 Fast Attach 6 | 4 1 . 1 Attach 2 | . 1 . 1 Detach 1 | . . . 1 Swap 2 | . . . 2 Drop 2 | . . . 2 Fire 34 | 16 12 3 3 Melee . | . . . . Ram . | . . . . Kick . | . . . . Crush . | . . . . Escape Stasis . | . . . . Rewire 1 | . . . 1 Trap . | . . . . Miscellaneous . | . . . . Route ------- -11/Scrapyard -10/Materials -10/Mines (discovered 3 exits: [*Mat] / *Exi / [*Sub]) -10/Exiles History --------- Turn | Location | Event 10 | -11/Scrapyard | Discovered new exit (range 16) 113 | -11/Scrapyard | Entered Materials 303 | -10/Materials | Build established: Mutant 310 | -10/Materials | Discovered new exit (range 7) 316 | -10/Materials | Entered Mines 317 | -10/Mines | Assembled infested the area 322 | -10/Mines | Assisted by a Guerilla fighting off Assembled 341 | -10/Mines | Discovered new exit (range 13) 406 | -10/Mines | Discovered new exit (range 8) 447 | -10/Mines | Deemed a non-threat by the Exiles lab entrance 448 | -10/Mines | Discovered new exit (range 5) 452 | -10/Mines | Entered Exiles 476 | -10/Exiles | Met 8R-AWN 490 | -10/Exiles | Met EX-HEX 533 | -10/Exiles | Met EX-BIN 545 | -10/Exiles | Aligned with FarCom system 546 | -10/Exiles | Given EX-Vault access code 567 | -10/Exiles | Opened EX-Vault 576 | -10/Exiles | Found Potential Leg 578 | -10/Exiles | Found Potential Leg 598 | -10/Exiles | Warned to stay clear of 0b10 Research branches 618 | -10/Exiles | Found Gui. Plasma Cannon 726 | -10/Exiles | Found AWS/Thermal 777 | -10/Exiles | Met EX-DEC 866 | -10/Exiles | Attacked by the Exiles 880 | -10/Exiles | Core integrity fell below 50% 888 | -10/Exiles | Core integrity fell below 20% 888 | -10/Exiles | Destroyed by as-44522 with Assembled Blade Last Messages --------------- code around. We're gonna change it right after you leave. Most certainly not to something like 1234 which I did last time as a little joke and some thief managed to sneak in here and steal a few of HEX's prototypes. Dropped Flight Unit. Acquired AWS/Thermal. EX-DEC: Ah I see we have a visitor. One wrong move in here and I'll invert your atomic chain! EX-DEC: "Oops, I hope HEX didn't hear that..." Dropped Grenade Launcher. Acquired Grenade Launcher. EXILES: Hostile robot within lab perimeter. Defensive protocols time, folks! Penetrated by HV Slug. Potential Leg severed. Penetrated by HV Slug. [Achievement: Thread The Needle Around The Corner] Sensor Array destroyed. Penetrated by HV Slug. Map ----- +----------------------------------------------------+ | ???????#""""""?# #?#########?????????????????? | | ???????##"###??# #?#"""""""#?????????????????? | | ???????? ??????# #?#"""""""#?????????????????? | | ???????????????# #?#"""""""#?????????????????? | | ??????????????## ###"" """"#?????????????????? | | ??????????????#" """"#?????????????????? | | ??????????????#" """#?????????????????? | | ??????????????#" """#?????????????????? | | ??????????????#" """#?????????????????? | | ??????????????#" """#?????????????????? | | ?? ???????????#" """##????????????????? | | ?" "??????????## """""????????????????? | | ?" ???????????# """##????????????????? | | "" ???????????#" "X" """""????????????????? | | "" ??????????#" """ #?????????????????? | | "??????????#" """""""""#?????????????????? | | ?" "?????????##" ###########?????????????????? | | ?# #????????##"" #???????????????????????????? | | ## ###?######"" #???????????????????????????? | | X# #"###""""""" ##??????????????????????????? | | """""" " "" ##???###########???????????? | | "" """ " #####"""""""""##??????????? | | " " " """ """"##?????????? | | "" " #?????????? | | " """#?????????? | | @a "a"#?????????? | | aa = " "##????????? | | aaa a ""###??????? | | """""" """#??????# | | ######""" "#????### | | ""##????#####""" ##???# | | """##?????????##""" ##?## | | """##???????????#"""" ### | | ""#????????????#"" | | ###????#?????#"""" | | ## ##??""" " | | """" #""" | | ##### | | ##???? | | " ##????? | | " "" """ ""#?????? | | ""#? ##""" " " ""#" "##?????? | | ""##??????####""" """##"""""""##??????? | | """"##??????????###""""#?#########???????? | | """#?????????????#####??????????????????? | | ""##????????????????????????????????????? | | """#??????????????????????????????????????? | | ##??????????????????????????????????????? | | " ##???????????????????????????????????????? | | #????????????????????????????????????????? | +----------------------------------------------------+ Best States ------------- Heat Dissipation 25 Energy Generation 10 Energy Capacity 125 Matter Stores 300 Matter Capacity 300 Sight Range 16 Robot Scan Range 14 Terrain Scan Density 10 Evasion (%) 57 Item Schematics ----------------- None Robot Schematics ------------------ None Fabricated ------------ Nothing Repaired ---------- Nothing Studied --------- None Alien Tech Used ----------------- None Achievements -------------- Thread The Needle Around The Corner Challenges ------------ None Game ------ Seed TransdimensionalRingShifter Manual? 0 Play Time 00:14:33 Cumulative 26.2 hours Start 2026.04.21 @ 14:56:37 End 2026.04.21 @ 15:09:24 Sessions 1 Manual Loads 0 Difficulty Rogue Special Mode None Game No. 48 Rogue 48 Adventurer 0 Explorer 0 Win Type - Total 0 Types 0/0/0/0/0/0/0/0/0/0 Lore% 28 Gallery% 19 Achievement% 19 Wizard Run 0 Options --------- Layout 1 ASCII 0 Keyboard 1 Movement Arrows Keybinds 0 Fullscreen 0 Font 14/SmallcapsGlow Map View 55x38 Zoom Use 0% Tactical HUD 0 Map Filters NONE Filters NONE Steam 1 RUN: f30f7563-9f94-484b-a341-b63b56c36eeb